fUST/lending_fUST_20250127
["ID","MTS","AMOUNT","RATE_DAILY","PERIOD"]
[350578942,1737970246429,-500.0,0.00016575,2]
[350578944,1737970246439,-500.0,0.00016575,2]
[350578946,1737970246448,-500.0,0.00016575,2]
[350578948,1737970246458,-500.0,0.00016575,2]
[350578950,1737970246469,-500.0,0.00016575,2]
[350578953,1737970246482,-500.0,0.00016575,2]
[350578955,1737970246495,-500.0,0.00016575,2]
[350578957,1737970246507,-500.0,0.00016575,2]
[350578959,1737970246517,-500.0,0.00016575,2]
[350578961,1737970246528,-500.0,0.00016575,2]
[350578964,1737970246540,-500.0,0.00016575,2]
[350578966,1737970246552,-500.0,0.00016575,2]
[350578968,1737970246564,-500.0,0.00016575,2]
[350578971,1737970246576,-500.0,0.00016575,2]
[350578973,1737970246589,-497.05359855,0.00016575,2]
[350578975,1737970246601,-301.4252587,0.00016575,2]
[350578977,1737970246613,-500.0,0.00016575,2]
[350578979,1737970246624,-500.0,0.00016575,2]
[350578980,1737970246636,-500.0,0.00016575,2]
[350578981,1737970246651,-500.0,0.00016575,2]
[350578982,1737970246663,-500.0,0.00016575,2]
[350578983,1737970246675,-500.0,0.00016575,2]
[350578984,1737970246687,-500.0,0.00016575,2]
[350578985,1737970246698,-500.0,0.00016575,2]
[350578986,1737970246709,-500.0,0.00016575,2]
[350578987,1737970246721,-500.0,0.00016575,2]
[350578988,1737970246733,-234.73,0.00016575,2]
[350578989,1737970246744,-500.0,0.00016575,2]
[350578990,1737970246755,-500.0,0.00016575,2]
[350578992,1737970246766,-284.05,0.00016575,2]
[350578994,1737970246776,-500.0,0.00016575,2]
[350578996,1737970246788,-500.0,0.00016575,2]
[350578998,1737970246798,-500.0,0.00016575,2]
[350579000,1737970246810,-500.0,0.00016575,2]
[350579002,1737970246821,-500.0,0.00016575,2]
[350579005,1737970246833,-500.0,0.00016575,2]
[350579007,1737970246846,-500.0,0.00016575,2]
[350579009,1737970246858,-500.0,0.00016575,2]
[350579012,1737970246871,-500.0,0.00016575,2]
[350579014,1737970246883,-3088.69,0.00016575,2]
[350579016,1737970246896,-500.0,0.00016575,2]
[350579019,1737970246908,-945.22,0.00016575,2]
[350579021,1737970246920,-500.0,0.00016575,2]
[350579023,1737970246931,-418.73119519,0.00016575,2]
[350579025,1737970246941,-1039.52,0.00016575,2]
[350579027,1737970246951,-445.47,0.00016575,2]
[350579029,1737970246962,-500.0,0.00016575,2]
[350579032,1737970246973,-3173.57,0.00016575,2]
[350579034,1737970246986,-1292.08,0.00016575,2]
[350579037,1737970246999,-668.89,0.00016575,2]
[350579039,1737970247011,-500.0,0.00016575,2]
[350579041,1737970247021,-500.0,0.00016575,2]
[350579043,1737970247032,-7921.62,0.00016575,2]
[350579045,1737970247043,-500.0,0.00016575,2]
[350579047,1737970247053,-500.0,0.00016575,2]
[350579050,1737970247066,-994.2,0.00016575,2]
[350579052,1737970247078,-500.0,0.00016575,2]
[350579054,1737970247089,-500.0,0.00016575,2]
[350579056,1737970247101,-500.0,0.00016575,2]
[350579058,1737970247112,-500.0,0.00016575,2]
[350579060,1737970247122,-500.0,0.00016575,2]
[350579063,1737970247134,-500.0,0.00016575,2]
[350579065,1737970247144,-580.74,0.00016575,2]
[350579067,1737970247156,-500.0,0.00016575,2]
[350579069,1737970247168,-500.0,0.00016575,2]
[350579071,1737970247179,-500.0,0.00016575,2]
[350579073,1737970247190,-1057.19,0.00016575,2]
[350579076,1737970247202,-500.0,0.00016575,2]
[350579078,1737970247213,-1925.55,0.00016575,2]
[350579080,1737970247226,-500.0,0.00016575,2]
[350579082,1737970247237,-2021.84,0.00016575,2]
[350579084,1737970247248,-500.0,0.00016575,2]
[350579086,1737970247259,-500.0,0.00016575,2]
[350579089,1737970247270,-500.0,0.00016575,2]
[350579091,1737970247280,-500.0,0.00016575,2]
[350579093,1737970247291,-500.0,0.00016575,2]
[350579095,1737970247303,-500.0,0.00016575,2]
[350579097,1737970247315,-808.57,0.00016575,2]
[350579100,1737970247326,-809.81,0.00016575,2]
[350579102,1737970247337,-500.0,0.00016575,2]
[350579104,1737970247347,-500.0,0.00016575,2]
[350579106,1737970247358,-275.75961333,0.00016575,2]
[350579108,1737970247369,-500.0,0.00016575,2]
[350579110,1737970247380,-500.0,0.00016575,2]
[350579112,1737970247392,-500.0,0.00016575,2]
[350579114,1737970247402,-500.0,0.00016575,2]
[350579117,1737970247413,-500.0,0.00016575,2]
[350579119,1737970247424,-500.0,0.00016575,2]
[350579121,1737970247435,-500.0,0.00016575,2]
[350579123,1737970247446,-500.0,0.00016575,2]
[350579125,1737970247457,-500.0,0.00016575,2]
[350579128,1737970247469,-500.0,0.00016575,2]
[350579130,1737970247480,-1758.82,0.00016575,2]
[350579132,1737970247491,-500.0,0.00016575,2]
[350579134,1737970247502,-500.0,0.00016575,2]
[350579136,1737970247513,-500.0,0.00016575,2]
[350579139,1737970247524,-392.5,0.00016575,2]
[350579141,1737970247535,-500.0,0.00016575,2]
[350579143,1737970247546,-500.0,0.00016575,2]
[350579145,1737970247557,-631.2,0.00016575,2]
[350579147,1737970247568,-500.0,0.00016575,2]
[350579149,1737970247578,-500.11955808,0.00016575,2]
[350579151,1737970247588,-500.0,0.00016575,2]
[350579153,1737970247598,-632.82,0.00016611,2]
[350579155,1737970247608,-632.82,0.00016611,2]
[350579157,1737970247618,-410.5254742,0.00016711,2]
[350579159,1737970247628,-632.82,0.00016711,2]
[350579161,1737970247638,-632.82,0.00016711,2]
[350579163,1737970247647,-632.82,0.00016711,2]
[350579165,1737970247657,-632.82,0.00016711,2]
[350579167,1737970247666,-632.82,0.00016711,2]
[350579169,1737970247676,-632.82,0.00016711,2]
[350579171,1737970247686,-632.96922834,0.00016711,2]
[350579188,1737970247830,-20314.41830656,0.00016712,5]
[350579191,1737970247847,-6839.35228162,0.00016712,5]
[350579206,1737970247975,-5269.21476844,0.00016712,5]
[350580621,1737970372914,178.58,0.00010959,2]
[350580622,1737970383439,892.92,0.00010959,2]
[350580623,1737970630208,5018.2,0.00023001,120]
[350580632,1737970770718,1063.05141912,0.00023001,120]
[350580633,1737970884999,165.919276,0.00013973,2]
[350580637,1737971239114,-530.632462,0.00015712,2]
[350580638,1737971239137,-300.0,0.00015923,2]
[350580639,1737971239161,-1590.85897931,0.00015924,2]
[350580643,1737971348132,-300.0,0.00015786,2]
[350580644,1737971348180,-20790.62158698,0.00015787,2]
[350580645,1737971349207,-4014.88675136,0.00015787,2]
[350580699,1737971432019,-163.8008251,0.00015712,2]
[350580701,1737971432028,-94.49166166,0.00015787,2]
[350580703,1737971432038,-300.0,0.00016437,2]
[350580705,1737971432050,-135.46883668,0.00016438,2]
[350580709,1737971432077,-46.29116332,0.00016438,2]
[350580711,1737971432086,-500.0,0.00016438,2]
[350580713,1737971432096,-500.0,0.00016438,2]
[350580715,1737971432106,-605.16,0.00016438,2]
[350580717,1737971432115,-500.0,0.00016438,2]
[350580719,1737971432125,-500.0,0.00016438,2]
[350580721,1737971432134,-168.01335668,0.00016438,2]
[350581177,1737971439960,-269.05460459,0.00016438,2]
[350581179,1737971439971,-114.22203873,0.00016438,2]
[350581180,1737971439980,-429.77640263,0.00016438,2]
[350581181,1737971439989,-500.0,0.00016438,2]
[350581182,1737971439999,-500.0,0.00016438,2]
[350581183,1737971440008,-423.43951563,0.00016438,2]
[350581184,1737971440017,-500.0,0.00016438,2]
[350581185,1737971440026,-500.0,0.00016438,2]
[350581186,1737971440035,-500.0,0.00016438,2]
[350581187,1737971440044,-258.27315078,0.00016438,2]
[350581188,1737971440055,-500.0,0.00016438,2]
[350581189,1737971440065,-500.0,0.00016438,2]
[350581190,1737971440074,-250.12582793,0.00016438,2]
[350581191,1737971440127,-249.87417207,0.00016438,2]
[350581192,1737971440136,-502.09160468,0.00016438,2]
[350581193,1737971440145,-500.0,0.00016438,2]
[350581194,1737971440155,-500.0,0.00016438,2]
[350581195,1737971440164,-500.0,0.00016438,2]
[350581196,1737971440173,-500.0,0.00016438,2]
[350581197,1737971440183,-500.0,0.00016438,2]
[350581198,1737971440192,-500.0,0.00016438,2]
[350581200,1737971440201,-500.0,0.00016438,2]
[350581202,1737971440210,-500.0,0.00016438,2]
[350581204,1737971440220,-500.0,0.00016438,2]
[350581206,1737971440229,-500.0,0.00016438,2]
[350581208,1737971440238,-500.0,0.00016438,2]
[350581210,1737971440247,-500.0,0.00016438,2]
[350581212,1737971440257,-500.0,0.00016438,2]
[350581214,1737971440266,-500.0,0.00016438,2]
[350581217,1737971440275,-500.0,0.00016438,2]
[350581218,1737971440284,-500.0,0.00016438,2]
[350581220,1737971440293,-500.0,0.00016438,2]
[350581221,1737971440306,-500.0,0.00016438,2]
[350581222,1737971440315,-500.0,0.00016438,2]
[350581223,1737971440324,-524.86660861,0.00016438,2]
[350581224,1737971440333,-504.48697567,0.00016438,2]
[350581225,1737971440342,-501.96832338,0.00016438,2]
[350581226,1737971440351,-500.0,0.00016438,2]
[350581227,1737971440360,-348.18957218,0.00016438,2]
[350581228,1737971440369,-500.0,0.00016438,2]
[350581229,1737971440378,-500.0,0.00016438,2]
[350581230,1737971440388,-500.0,0.00016438,2]
[350581231,1737971440398,-319.27579329,0.00016438,2]
[350581232,1737971440407,-500.0,0.00016438,2]
[350581233,1737971440417,-500.0,0.00016438,2]
[350581234,1737971440427,-500.0,0.00016438,2]
[350581235,1737971440435,-500.0,0.00016438,2]
[350581236,1737971440445,-500.0,0.00016438,2]
[350581237,1737971440454,-529.96341939,0.00016438,2]
[350581238,1737971440463,-500.0,0.00016438,2]
[350581239,1737971440472,-500.0,0.00016438,2]
[350581240,1737971440482,-500.0,0.00016438,2]
[350581241,1737971440492,-500.0,0.00016438,2]
[350581242,1737971440502,-523.57,0.00016438,2]
[350581243,1737971440511,-500.0,0.00016438,2]
[350581244,1737971440520,-500.0,0.00016438,2]
[350581245,1737971440530,-500.0,0.00016438,2]
[350581246,1737971440539,-500.0,0.00016438,2]
[350581247,1737971440550,-500.0,0.00016438,2]
[350581248,1737971440559,-500.0,0.00016438,2]
[350581249,1737971440568,-500.0,0.00016438,2]
[350581250,1737971440578,-866.45,0.00016438,2]
[350581251,1737971440587,-500.0,0.00016438,2]
[350581252,1737971440597,-500.0,0.00016438,2]
[350581253,1737971440608,-488.15321743,0.00016438,2]
[350581254,1737971440618,-500.0,0.00016438,2]
[350581255,1737971440627,-2831.3,0.00016438,2]
[350581256,1737971440636,-500.0,0.00016438,2]
[350581257,1737971440646,-501.65443903,0.00016438,2]
[350581258,1737971440656,-500.0,0.00016438,2]
[350581259,1737971440666,-500.0,0.00016438,2]
[350581260,1737971440677,-500.0,0.00016438,2]
[350581261,1737971440686,-500.0,0.00016438,2]
[350581262,1737971440695,-501.83177931,0.00016438,2]
[350581263,1737971440704,-7274.89,0.00016438,2]
[350581264,1737971440714,-952.89,0.00016438,2]
[350581265,1737971440723,-500.0,0.00016438,2]
[350581266,1737971440732,-500.0,0.00016438,2]
[350581267,1737971440741,-1184.41,0.00016438,2]
[350581268,1737971440751,-2909.1,0.00016438,2]
[350581269,1737971440759,-500.0,0.00016438,2]
[350581270,1737971440769,-186.29423469,0.00016438,2]
[350581271,1737971440778,-620.46,0.00016438,2]
[350581272,1737971440788,-500.0,0.00016438,2]
[350581273,1737971440797,-500.0,0.00016438,2]
[350581274,1737971440806,-911.35,0.00016438,2]
[350581275,1737971440816,-500.0,0.00016438,2]
[350581276,1737971440825,-500.0,0.00016438,2]
[350581277,1737971440834,-500.0,0.00016438,2]
[350581278,1737971440843,-500.0,0.00016438,2]
[350581279,1737971440852,-469.62746594,0.00016438,2]
[350581280,1737971440862,-500.0,0.00016438,2]
[350581281,1737971440871,-532.35,0.00016438,2]
[350581282,1737971440881,-500.0,0.00016438,2]
[350581283,1737971440890,-500.0,0.00016438,2]
[350581284,1737971440900,-500.0,0.00016438,2]
[350581285,1737971440909,-969.1,0.00016438,2]
[350581286,1737971440918,-500.0,0.00016438,2]
[350581287,1737971440927,-500.0,0.00016438,2]
[350581288,1737971440936,-1152.63044386,0.00016438,2]
[350581289,1737971441024,-331.40099454,0.00016438,2]
[350581293,1737971443110,-281.0485616,0.00016438,2]
[350581294,1737971443120,-500.0,0.00016438,2]
[350581295,1737971443129,-500.0,0.00016438,2]
[350581296,1737971443138,-500.0,0.00016438,2]
[350581297,1737971443147,-1853.35,0.00016438,2]
[350581298,1737971443156,-500.0,0.00016438,2]
[350581299,1737971443165,-500.0,0.00016438,2]
[350581300,1737971443174,-500.0,0.00016438,2]
[350581301,1737971443183,-500.0,0.00016438,2]
[350581302,1737971443192,-523.91799576,0.00016438,2]
[350581305,1737971443201,-500.0,0.00016438,2]
[350581308,1737971443210,-500.0,0.00016438,2]
[350581311,1737971443218,-742.32,0.00016438,2]
[350581312,1737971443227,-500.0,0.00016438,2]
[350581313,1737971443236,-741.19,0.00016438,2]
[350581314,1737971443245,-500.0,0.00016438,2]
[350581315,1737971443254,-500.0,0.00016438,2]
[350581316,1737971443263,-500.0,0.00016438,2]
[350581317,1737971443272,-500.0,0.00016438,2]
[350581318,1737971443281,-500.0,0.00016438,2]
[350581320,1737971443290,-500.0,0.00016438,2]
[350581322,1737971443301,-509.36756697,0.00016438,2]
[350581324,1737971443310,-500.0,0.00016438,2]
[350581326,1737971443319,-612.66,0.00016438,2]
[350581328,1737971443327,-500.0,0.00016438,2]
[350581330,1737971443336,-625.23,0.00016438,2]
[350581332,1737971443345,-500.0,0.00016438,2]
[350581334,1737971443354,-500.0,0.00016438,2]
[350581336,1737971443363,-500.0,0.00016438,2]
[350581338,1737971443372,-500.0,0.00016438,2]
[350581340,1737971443381,-500.0,0.00016438,2]
[350581342,1737971443390,-236.16278301,0.00016438,2]
[350581344,1737971443399,-500.0,0.00016438,2]
[350581346,1737971443408,-1612.25,0.00016438,2]
[350581348,1737971443417,-500.0,0.00016438,2]
[350581349,1737971443426,-500.0,0.00016438,2]
[350581352,1737971443436,-410.29,0.00016438,2]
[350581354,1737971443445,-500.0,0.00016438,2]
[350581355,1737971443455,-500.0,0.00016438,2]
[350581357,1737971443464,-512.17,0.00016438,2]
[350581359,1737971443473,-500.0,0.00016575,2]
[350581361,1737971443482,-500.0,0.00016575,2]
[350581363,1737971443491,-204.12,0.00016575,2]
[350581365,1737971443501,-500.0,0.00016575,2]
[350581378,1737971443607,-500.0,0.00016575,2]
[350581380,1737971443617,-500.0,0.00016575,2]
[350581382,1737971443627,-500.0,0.00016575,2]
[350581384,1737971443637,-500.0,0.00016575,2]
[350581386,1737971443646,-500.0,0.00016575,2]
[350581388,1737971443657,-500.0,0.00016575,2]
[350581390,1737971443666,-500.0,0.00016575,2]
[350581392,1737971443676,-500.0,0.00016575,2]
[350581394,1737971443686,-500.0,0.00016575,2]
[350581396,1737971443695,-500.0,0.00016575,2]
[350581398,1737971443704,-141.22792437,0.00016575,2]
[350581885,1737971448404,978.77576478,0.0002,30]
[350581950,1737971449085,178.58,0.00010959,2]
[350582165,1737971511005,535.74,0.00010959,2]
[350582173,1737972013298,157.623312,0.00013973,2]
[350582175,1737972441107,-540.3224408,0.00015572,2]
[350582176,1737972453097,-445.08224638,0.00015572,2]
[350582177,1737972545208,-300.0,0.00015571,2]
[350582178,1737972545232,-20381.8947184,0.00015572,2]
[350582179,1737972570152,-178.31054882,0.00015572,2]
[350582180,1737972570173,-265.316231,0.00015712,2]
[350582181,1737972570194,-202.16382018,0.00016338,2]
[350582235,1737972632320,-2247.13311809,0.00016238,2]
[350582237,1737972632329,-31.56376684,0.00016338,2]
[350582239,1737972632339,-151.0,0.00016428,2]
[350582241,1737972632348,-300.0,0.00016437,2]
[350582243,1737972632357,-343.30311507,0.00016438,2]
[350582245,1737972632369,-156.69688493,0.00016438,2]
[350582247,1737972632378,-506.77,0.00016438,2]
[350582249,1737972632387,-302.85196127,0.00016438,2]
[350582251,1737972632397,-27.5991403,0.00016438,2]
[350582253,1737972632408,-472.4008597,0.00016438,2]
[350582255,1737972632417,-500.0,0.00016438,2]
[350582257,1737972632427,-500.0,0.00016438,2]
[350582259,1737972632436,-68.9491403,0.00016438,2]
[350582260,1737972632453,-539.1808597,0.00016438,2]
[350582261,1737972632463,-500.0,0.00016438,2]
[350582262,1737972632472,-500.0,0.00016438,2]
[350582263,1737972632481,-87.60558709,0.00016438,2]
[350582264,1737972632493,-412.39441291,0.00016438,2]
[350582265,1737972632502,-500.0,0.00016438,2]
[350582266,1737972632511,-459.75132677,0.00016438,2]
[350582267,1737972632520,-500.0,0.00016438,2]
[350582268,1737972632529,-500.0,0.00016438,2]
[350582269,1737972632538,-500.0,0.00016438,2]
[350582270,1737972632547,-500.0,0.00016438,2]
[350582271,1737972632556,-500.0,0.00016438,2]
[350582272,1737972632566,-500.0,0.00016438,2]
[350582273,1737972632575,-500.0,0.00016438,2]
[350582274,1737972632583,-500.0,0.00016438,2]
[350582275,1737972632592,-500.0,0.00016438,2]
[350582276,1737972632601,-500.0,0.00016438,2]
[350582277,1737972632610,-500.0,0.00016438,2]
[350582278,1737972632619,-387.56756592,0.00016438,2]
[350582322,1737972638188,-112.43243408,0.00016438,2]
[350582323,1737972638198,-500.0,0.00016438,2]
[350582326,1737972638207,-500.0,0.00016438,2]
[350582328,1737972638217,-505.9926167,0.00016438,2]
[350582330,1737972638226,-500.0,0.00016438,2]
[350582332,1737972638236,-501.65713457,0.00016438,2]
[350582334,1737972638245,-534.19,0.00016438,2]
[350582336,1737972638255,-500.0,0.00016438,2]
[350582338,1737972638264,-500.0,0.00016438,2]
[350582340,1737972638273,-500.0,0.00016438,2]
[350582342,1737972638283,-438.17995673,0.00016438,2]
[350582344,1737972638293,-451.62008108,0.00016438,2]
[350582346,1737972638302,-500.0,0.00016438,2]
[350582348,1737972638311,-500.0,0.00016438,2]
[350582350,1737972638321,-500.0,0.00016438,2]
[350582352,1737972638330,-500.0,0.00016438,2]
[350582354,1737972638339,-500.0,0.00016438,2]
[350582356,1737972638348,-500.0,0.00016438,2]
[350582358,1737972638358,-404.90455279,0.00016438,2]
[350582360,1737972638368,-509.58524936,0.00016438,2]
[350582362,1737972638377,-507.25544204,0.00016438,2]
[350582364,1737972638392,-500.0,0.00016438,2]
[350582366,1737972638401,-500.0,0.00016438,2]
[350582368,1737972638410,-580.91291934,0.00016438,2]
[350582370,1737972638420,-500.0,0.00016438,2]
[350582372,1737972638429,-500.0,0.00016438,2]
[350582374,1737972638438,-500.0,0.00016438,2]
[350582376,1737972638448,-500.0,0.00016438,2]
[350582378,1737972638457,-607.4,0.00016438,2]
[350582380,1737972638466,-830.35,0.00016438,2]
[350582382,1737972638477,-500.0,0.00016438,2]
[350582384,1737972638486,-2918.1,0.00016438,2]
[350582386,1737972638496,-500.0,0.00016438,2]
[350582388,1737972638505,-259.671048,0.00016438,2]
[350582391,1737972638517,-240.328952,0.00016438,2]
[350582393,1737972638526,-500.0,0.00016438,2]
[350582395,1737972638536,-500.0,0.00016438,2]
[350582397,1737972638545,-1260.08,0.00016438,2]
[350582399,1737972638555,-500.0,0.00016438,2]
[350582401,1737972638565,-500.0,0.00016438,2]
[350582403,1737972638575,-7312.64,0.00016438,2]
[350582405,1737972638584,-397.16419567,0.00016438,2]
[350582407,1737972638593,-894.21,0.00016438,2]
[350582409,1737972638603,-500.0,0.00016438,2]
[350582411,1737972638612,-1014.48,0.00016438,2]
[350582413,1737972638621,-500.0,0.00016438,2]
[350582415,1737972638631,-662.09,0.00016438,2]
[350582417,1737972638640,-500.0,0.00016438,2]
[350582419,1737972638650,-500.0,0.00016438,2]
[350582421,1737972638659,-257.21305875,0.00016438,2]
[350582423,1737972638669,-500.0,0.00016438,2]
[350582425,1737972638678,-2900.5,0.00016438,2]
[350582427,1737972638688,-429.68379358,0.00016438,2]
[350582430,1737972638700,-70.31620642,0.00016438,2]
[350582432,1737972638709,-500.0,0.00016438,2]
[350582434,1737972638718,-500.0,0.00016438,2]
[350582436,1737972638728,-638.12,0.00016438,2]
[350582438,1737972638738,-645.01194202,0.00016438,2]
[350582440,1737972638747,-500.0,0.00016438,2]
[350582442,1737972638756,-500.0,0.00016438,2]
[350582444,1737972638766,-500.0,0.00016438,2]
[350582446,1737972638775,-500.0,0.00016438,2]
[350582448,1737972638783,-573.73,0.00016438,2]
[350582450,1737972638792,-578.04,0.00016438,2]
[350582452,1737972638801,-500.0,0.00016438,2]
[350582454,1737972638810,-500.0,0.00016438,2]
[350582456,1737972638819,-500.0,0.00016438,2]
[350582458,1737972638828,-1068.25,0.00016438,2]
[350582460,1737972638838,-500.0,0.00016438,2]
[350582462,1737972638847,-500.0,0.00016438,2]
[350582464,1737972638856,-500.0,0.00016438,2]
[350582466,1737972638865,-598.12,0.00016438,2]
[350582468,1737972638874,-1912.41,0.00016438,2]
[350582470,1737972638883,-500.0,0.00016438,2]
[350582472,1737972638892,-854.7,0.00016438,2]
[350582474,1737972638901,-500.0,0.00016438,2]
[350582475,1737972638910,-500.0,0.00016438,2]
[350582478,1737972638920,-500.0,0.00016438,2]
[350582479,1737972638929,-500.0,0.00016438,2]
[350582482,1737972638938,-500.0,0.00016438,2]
[350582484,1737972638947,-1920.16,0.00016438,2]
[350582486,1737972638957,-500.0,0.00016438,2]
[350582488,1737972638966,-809.34,0.00016438,2]
[350582490,1737972638975,-500.0,0.00016438,2]
[350582492,1737972638984,-500.0,0.00016438,2]
[350582494,1737972638994,-284.71,0.00016438,2]
[350582496,1737972639003,-500.0,0.00016438,2]
[350582498,1737972639017,-500.0,0.00016438,2]
[350582500,1737972639027,-500.0,0.00016438,2]
[350582502,1737972639036,-500.0,0.00016438,2]
[350582504,1737972639045,-500.0,0.00016438,2]
[350582521,1737972639188,-500.0,0.00016438,2]
[350582523,1737972639201,-500.0,0.00016438,2]
[350582525,1737972639210,-1688.57,0.00016438,2]
[350582527,1737972639219,-500.0,0.00016438,2]
[350582529,1737972639228,-500.0,0.00016438,2]
[350582531,1737972639237,-517.49330595,0.00016438,2]
[350582533,1737972639247,-500.0,0.00016438,2]
[350582535,1737972639255,-54.40325346,0.00016438,2]
[350582538,1737972639273,-445.59674654,0.00016438,2]
[350582540,1737972639282,-500.0,0.00016438,2]
[350582542,1737972639291,-431.5107803,0.00016438,2]
[350582553,1737972639375,-68.4892197,0.00016438,2]
[350582555,1737972639383,-246.57353874,0.00016438,2]
[350582557,1737972639394,-253.42646126,0.00016438,2]
[350582559,1737972639404,-500.0,0.00016438,2]
[350582561,1737972639413,-500.0,0.00016438,2]
[350582563,1737972639422,-10072.08647874,0.00016575,5]
[350582565,1737972639434,-551.99706812,0.00016575,5]
[350582851,1737972642649,-1044.46308297,0.00016575,5]
[350582864,1737972642705,-312.2633,0.00016575,5]
[350582878,1737972642764,-445.19696336,0.00016575,5]
[350582882,1737972642773,-341.05103664,0.00016575,5]
[350582886,1737972642784,-7918.08188397,0.00016575,5]
[350582889,1737972642794,-151.0,0.00016575,2]
[350582894,1737972642803,-151.0,0.00016575,2]
[350582898,1737972642812,-500.0,0.00016575,2]
[350582901,1737972642822,-500.0,0.00016575,2]
[350582904,1737972642832,-212.51703915,0.00016575,2]
[350582906,1737972642841,-493.69063922,0.00016575,2]
[350582909,1737972642850,-195.21208964,0.00016575,2]
[350582910,1737972642860,-500.0,0.00016575,2]
[350582913,1737972642869,-505.34602776,0.00016575,2]
[350582915,1737972642878,-500.0,0.00016575,2]
[350582916,1737972642888,-166.24266255,0.00016575,2]
[350582917,1737972642898,-500.0,0.00016575,2]
[350582918,1737972642907,-500.0,0.00016575,2]
[350582919,1737972642916,-194.97227962,0.00016575,2]
[350582920,1737972642925,-500.0,0.00016575,2]
[350582922,1737972642934,-283.26,0.00016575,2]
[350582924,1737972642943,-500.0,0.00016575,2]
[350582926,1737972642952,-500.0,0.00016575,2]
[350582928,1737972642961,-500.0,0.00016575,2]
[350582930,1737972642970,-500.0,0.00016575,2]
[350582932,1737972642979,-500.0,0.00016575,2]
[350582934,1737972642988,-500.0,0.00016575,2]
[350582936,1737972642997,-500.0,0.00016575,2]
[350582938,1737972643007,-500.0,0.00016575,2]
[350582939,1737972643023,-500.0,0.00016575,2]
[350582940,1737972643032,-500.0,0.00016575,2]
[350582941,1737972643041,-500.0,0.00016575,2]
[350582942,1737972643050,-500.0,0.00016575,2]
[350582943,1737972643060,-99.21855617,0.00016575,2]
[350582952,1737972643164,-400.78144383,0.00016575,2]
[350582954,1737972643174,-586.32,0.00016575,2]
[350582956,1737972643183,-102.89855617,0.00016575,2]
[350582958,1737972643195,-48.10144383,0.00016575,2]
[350582960,1737972643204,-151.0,0.00016575,2]
[350582962,1737972643214,-151.0,0.00016575,2]
[350582964,1737972643223,-151.0,0.00016575,2]
[350582966,1737972643232,-151.0,0.00016575,2]
[350582968,1737972643242,-500.0,0.00016575,2]
[350582970,1737972643251,-500.0,0.00016575,2]
[350582972,1737972643260,-151.0,0.00016575,2]
[350582974,1737972643269,-830.35,0.00016575,2]
[350582976,1737972643278,-151.0,0.00016575,2]
[350582978,1737972643287,-151.0,0.00016575,2]
[350582980,1737972643296,-500.0,0.00016575,2]
[350582982,1737972643306,-1260.08,0.00016575,2]
[350582984,1737972643315,-500.0,0.00016575,2]
[350582986,1737972643324,-3274.81836033,0.00016575,2]
[350582989,1737972643336,-1345.02282096,0.00016575,2]
[350582991,1737972643347,-2170.95434459,0.00016575,2]